fUSD/lending_fUSD_20240627
["ID","MTS","AMOUNT","RATE_DAILY","PERIOD"]
[330467361,1719456638035,-11199.48006532,0.000139,2]
[330467362,1719456638046,-1071.82324085,0.000139,2]
[330467363,1719456638055,-158.2435339,0.000139,2]
[330467364,1719456638065,-2375.8251,0.000139,2]
[330467365,1719456638074,-351.77,0.0001399,3]
[330467366,1719456638083,-42546.8154891,0.00014,2]
[330467367,1719456638098,-9553.154996,0.00014,2]
[330467368,1719456638109,-9084.2900005,0.00014,2]
[330467369,1719456638120,-9523.63571041,0.00014,2]
[330467370,1719456638131,-726.22550044,0.00014,2]
[330467371,1719456638142,-3209.94494954,0.00014,2]
[330467376,1719456638352,-3201.30434643,0.00014,2]
[330467377,1719456638364,-4915.4529954,0.00014,2]
[330467378,1719456638376,-6460.08529946,0.00014,2]
[330467382,1719456640039,-786.85172783,0.00014,2]
[330467383,1719456640052,-655.06058241,0.00014,2]
[330467384,1719456640065,-562.37990302,0.00014,2]
[330467386,1719456640115,-1560.92555129,0.00014,2]
[330467398,1719456646391,-1004.84499967,0.00014,2]
[330467399,1719456646404,-42867.73065788,0.00014,2]
[330467405,1719457490511,161.25976206,0.00010998,2]
[330467406,1719457574788,15973.46824415,0.00010998,2]
[330467407,1719457607834,463.73418851,0.00010998,2]
[330467409,1719457756652,10648.97882943,0.00010998,2]
[330467412,1719457833423,-300.0,0.00011097,2]
[330467416,1719457833433,-485.46905294,0.00011098,2]
[330467418,1719457833442,-4805.63297684,0.00011098,2]
[330467420,1719457833452,-235.65962678,0.00011098,2]
[330467422,1719457833462,-2059.89637427,0.00011199,2]
[330467423,1719457833475,-1074.32,0.00011199,2]
[330467424,1719457833488,-642.3977412,0.00011199,2]
[330467425,1719457833864,-3393.4696379,0.00011199,2]
[330467426,1719457833876,-935.25814264,0.00011199,2]
[330467427,1719457833888,-2435.90609586,0.00011199,2]
[330467428,1719457833899,-3256.71274668,0.00011199,2]
[330467429,1719457833910,-1629.4257306,0.00011199,2]
[330467430,1719457833923,-456.76620795,0.00011199,2]
[330467431,1719457833935,-956.69375819,0.00011199,2]
[330467432,1719457833946,-4021.63778778,0.00011199,2]
[330467433,1719457833955,-155.27939359,0.00011199,2]
[330467434,1719457833965,-446.03,0.00011386,2]
[330467435,1719457833974,-156.75776374,0.00012121,2]
[330467436,1719457833984,-86.90860291,0.00012273,2]
[330467437,1719457833996,-244.72653555,0.00012273,2]
[330467438,1719457834010,-152.84137756,0.00012273,2]
[330467439,1719457834022,-138.60851527,0.00012273,2]
[330467440,1719457834032,-432.83641763,0.00012273,2]
[330467441,1719457834041,-249.96667324,0.00012314,2]
[330467442,1719457834051,-9020.67417286,0.00013056,2]
[330467443,1719457834453,-302.11780374,0.00013056,2]
[330467445,1719457834465,-997.8724334,0.00013056,2]
[330467500,1719457838882,-659.75132017,0.00013056,2]
[330467501,1719457838894,-8590.69426983,0.00013056,2]
[330467502,1719457838906,-1000.0,0.00013101,2]
[330467503,1719457838915,-250.0,0.00013169,2]
[330467504,1719457838925,-999.99,0.00013169,2]
[330467505,1719457838935,-8874.14902453,0.00013331,2]
[330467506,1719457838945,-446.03,0.0001365,2]
[330467507,1719457839748,-200.0,0.00013699,2]
[330467508,1719457839791,-163.7,0.00013699,2]
[330467509,1719457839825,-1500.0,0.00013733,5]
[330467510,1719457839849,-1839.20445,0.0001386,2]
[330467511,1719457839859,-692.21906065,0.00013889,2]
[330467512,1719457839869,-474.28975858,0.00013899,2]
[330467513,1719457839878,-1000.0,0.000139,2]
[330467514,1719457839888,-9551.615,0.000139,2]
[330467515,1719457839899,-1000.0,0.000139,2]
[330467516,1719457839909,-2446.8118,0.000139,2]
[330467517,1719457839919,-1197.953,0.000139,2]
[330467518,1719457839928,-161.25976206,0.000139,2]
[330467519,1719457839939,-221.1567,0.000139,2]
[330467520,1719457839949,-9035.75187102,0.000139,2]
[330467521,1719457839958,-11044.17297549,0.000139,2]
[330467522,1719457839968,-828.92054796,0.000139,2]
[330467523,1719457839978,-546.9219001,0.000139,2]
[330467524,1719457839988,-327.24291454,0.000139,2]
[330467525,1719457839998,-720.09733834,0.00013989,2]
[330467526,1719457840008,-290.81299066,0.00013989,2]
[330467527,1719457840018,-404.53496476,0.00013989,2]
[330467528,1719457840028,-5395.04667324,0.00013999,2]
[330467529,1719457840038,-449.87299426,0.00013999,2]
[330467530,1719457840050,-11715.64755516,0.00014,2]
[330467531,1719457840085,-223701.63248974,0.00014,2]
[330467532,1719457840100,-472111.74325673,0.00014,2]
[330467533,1719457840183,-256.35206448,0.00014,2]
[330467537,1719457840769,-328.50066625,0.00012314,2]
[330467538,1719457840779,-170.90796496,0.00013899,2]
[330467539,1719457840789,-34486.41649787,0.00014,2]
[330467540,1719457840801,-569.2255812,0.00014,2]
[330467541,1719457840813,-82601.34088841,0.00014,2]
[330467542,1719457840823,-2000.0,0.00014,2]
[330467543,1719457840833,-200.0,0.00014,2]
[330467544,1719457840842,-2000.0,0.00014,2]
[330467545,1719457840852,-200.0,0.00014,2]
[330467546,1719457840862,-412.55586859,0.00014099,2]
[330467547,1719457840871,-174.41890804,0.00014125,2]
[330467548,1719457840881,-2000.0,0.0001414,2]
[330467549,1719457840891,-200.0,0.0001414,2]
[330467550,1719457840901,-2000.0,0.0001414,2]
[330467551,1719457840911,-200.0,0.0001414,2]
[330467552,1719457840921,-255.73,0.0001415,2]
[330467553,1719457840931,-255.73,0.00014189,2]
[330467554,1719457840941,-255.73,0.00014227,2]
[330467555,1719457840950,-255.73,0.00014266,2]
[330467556,1719457840960,-2000.0,0.00014281,2]
[330467557,1719457840971,-200.0,0.00014281,2]
[330467558,1719457840980,-2000.0,0.00014281,2]
[330467559,1719457840991,-200.0,0.00014281,2]
[330467560,1719457841001,-702.59,0.00014281,2]
[330467561,1719457841010,-250.0,0.00014299,2]
[330467562,1719457841021,-255.73,0.00014305,2]
[330467563,1719457841031,-255.73,0.00014344,2]
[330467564,1719457841041,-221.88,0.00014354,2]
[330467565,1719457841052,-178.61,0.00014354,2]
[330467566,1719457841062,-492.31,0.00014355,2]
[330467567,1719457841072,-2751.0,0.00014359,2]
[330467568,1719457841082,-255.73,0.00014383,2]
[330467569,1719457841092,-255.73,0.00014421,2]
[330467570,1719457841102,-2000.0,0.00014424,2]
[330467571,1719457841112,-200.0,0.00014424,2]
[330467572,1719457841121,-2000.0,0.00014424,2]
[330467573,1719457841130,-200.0,0.00014424,2]
[330467574,1719457841141,-255.73,0.0001446,2]
[330467575,1719457841151,-255.73,0.00014499,2]
[330467576,1719457841161,-155.0,0.00014499,2]
[330467577,1719457841170,-255.73,0.00014538,2]
[330467578,1719457841179,-2000.0,0.00014568,2]
[330467579,1719457841188,-200.0,0.00014568,2]
[330467580,1719457841200,-2000.0,0.00014568,2]
[330467581,1719457841211,-200.0,0.00014568,2]
[330467582,1719457841221,-255.73,0.00014577,2]
[330467583,1719457841231,-255.73,0.00014615,2]
[330467584,1719457841242,-255.73,0.00014654,2]
[330467585,1719457841252,-255.73,0.00014693,2]
[330467586,1719457841262,-255.73,0.00014732,2]
[330467587,1719457841272,-1000.0,0.00014738,2]
[330467588,1719457841282,-255.73,0.00014771,2]
[330467589,1719457841291,-9035.75187097,0.00014789,2]
[330467590,1719457841301,-11044.17297548,0.00014789,2]
[330467591,1719457841310,-255.73,0.00014809,2]
[330467592,1719457841319,-255.73,0.00014848,2]
[330467593,1719457841329,-255.73,0.00014887,2]
[330467594,1719457841338,-1002.268,0.00014899,2]
[330467595,1719457841348,-1924.09114703,0.00015,2]
[330467596,1719457841358,-22091.41302382,0.00015,2]
[330467598,1719457843405,-407.05521739,0.00015,2]
[330467611,1719458312569,556.72556106,0.00010998,2]
[330467613,1719458390205,4623.43164178,0.00010998,2]
[330467615,1719458487226,4623.43164178,0.00010998,2]
[330467618,1719458607238,4623.43164178,0.00010998,2]
[330467619,1719458609702,4623.43164178,0.00010998,2]
[330467620,1719458738223,4623.43164178,0.00010998,2]
[330467621,1719458768215,4623.43164178,0.00010998,2]
[330467624,1719458883720,4623.43164178,0.00010998,2]
[330467625,1719458886241,4623.43164178,0.00010998,2]
[330467628,1719459001737,4623.43164178,0.00010998,2]
[330467629,1719459034451,-586.33207861,0.00011098,2]
[330467630,1719459034463,-155.37260077,0.00011098,2]
[330467631,1719459034472,-474.28975858,0.00011098,2]
[330467632,1719459034482,-300.0,0.00011198,2]
[330467634,1719459034491,-10541.24799187,0.00011199,2]
[330467635,1719459034501,-19606.28873825,0.00011199,2]
[330467636,1719459034511,-454.94,0.00011798,2]
[330467637,1719459034521,-600.0,0.00013526,2]
[330467638,1719459034531,-163.7,0.00013699,2]
[330467639,1719459034541,-221.88,0.00013716,2]
[330467640,1719459034551,-499.99,0.00013716,2]
[330467641,1719459034560,-1500.0,0.00013835,5]
[330467642,1719459034571,-250.0,0.00013835,2]
[330467643,1719459034580,-8671.05743734,0.00013835,2]
[330467644,1719459034593,-1720.33256266,0.00013835,2]
[330467645,1719459034602,-3651.06,0.00013869,2]
[330467646,1719459034612,-10061.6696574,0.00013962,2]
[330467647,1719459034621,-8851.50546548,0.00013962,2]
[330467648,1719459034630,-558.5558506,0.00013962,2]
[330467649,1719459034639,-331.41907944,0.00013962,2]
[330467650,1719459034649,-351.29,0.00013965,2]
[330467651,1719459034659,-23890.0,0.0001399,2]
[330467652,1719459034669,-16128.49658443,0.00013999,2]
[330467653,1719459034681,-10113.25074618,0.00013999,2]
[330467654,1719459034694,-1200.0,0.00013999,2]
[330467655,1719459034710,-36325.31162038,0.00013999,2]
[330467656,1719459034722,-6075.0,0.00013999,2]
[330467657,1719459034735,-700.0,0.00013999,2]
[330467661,1719459039073,-246.34734534,0.00012314,2]
[330467662,1719459039082,-155.0,0.00013128,2]
[330467664,1719459039093,-260.43057533,0.00013472,2]
[330467666,1719459039104,-428537.61822127,0.00013999,2]
[330467667,1719459039114,-454.94,0.00014062,2]
[330467668,1719459039125,-1008.04,0.00014076,2]
[330467669,1719459039135,-178.61,0.00014076,2]
[330467670,1719459039146,-226.97665617,0.00014099,2]
[330467671,1719459039156,-336.072042,0.00014521,2]
[330467672,1719459039166,-10061.66965734,0.00014844,2]
[330467673,1719459039177,-8851.50546539,0.00014844,2]
[330467674,1719459039187,-400.0,0.00014865,2]
[330467675,1719459039197,-1000.0,0.00014899,2]
[330467676,1719459039208,-266.17183068,0.00014899,2]
[330467677,1719459039231,-202.51752468,0.0001499,2]
[330467678,1719459039244,-1340.46008288,0.00014999,2]
[330467679,1719459039255,-4593.90649165,0.00015,2]
[330467680,1719459039265,-101001.0,0.00015,2]
[330467681,1719459039275,-24630.6982386,0.00015,2]
[330467682,1719459039286,-2000.0,0.00015,2]
[330467683,1719459039297,-200.0,0.00015,2]
[330467684,1719459039308,-2000.0,0.00015,2]
[330467685,1719459039318,-200.0,0.00015,2]
[330467686,1719459039329,-2000.0,0.00015,2]
[330467687,1719459039339,-200.0,0.00015,2]
[330467688,1719459039349,-1674.23999,0.00015,2]
[330467689,1719459039360,-2000.0,0.00015,2]
[330467690,1719459039371,-200.0,0.00015,2]
[330467691,1719459039381,-558.5558506,0.00015096,2]
[330467692,1719459039392,-2000.0,0.0001515,2]
[330467693,1719459039403,-200.0,0.0001515,2]
[330467694,1719459039412,-2000.0,0.0001515,2]
[330467695,1719459039422,-200.0,0.0001515,2]
[330467696,1719459039433,-2000.0,0.0001515,2]
[330467697,1719459039443,-200.0,0.0001515,2]
[330467698,1719459039453,-2000.0,0.0001515,2]
[330467699,1719459039467,-200.0,0.0001515,2]
[330467700,1719459039479,-600.0,0.00015217,2]
[330467701,1719459039488,-2000.0,0.00015301,2]
[330467702,1719459039498,-200.0,0.00015301,2]
[330467703,1719459039508,-2000.0,0.00015301,2]
[330467704,1719459039518,-200.0,0.00015301,2]
[330467705,1719459039527,-2000.0,0.00015301,2]
[330467706,1719459039538,-200.0,0.00015301,2]
[330467707,1719459039549,-2000.0,0.00015301,2]
[330467708,1719459039559,-200.0,0.00015301,2]
[330467709,1719459039571,-336.072042,0.00015342,2]
[330467710,1719459039582,-2000.0,0.00015455,2]
[330467711,1719459039592,-200.0,0.00015455,2]
[330467712,1719459040005,-2000.0,0.00015455,2]
[330467713,1719459040083,-200.0,0.00015455,2]
[330467714,1719459040099,-2000.0,0.00015455,2]
[330467715,1719459040111,-200.0,0.00015455,2]
[330467716,1719459040122,-2000.0,0.00015455,2]
[330467717,1719459040133,-200.0,0.00015455,2]
[330467718,1719459040143,-2527.30114407,0.000155,3]
[330467719,1719459040161,-9226.69885593,0.000155,3]
[330467720,1719459040172,-2000.0,0.00015609,2]
[330467721,1719459040183,-200.0,0.00015609,2]
[330467722,1719459040193,-2000.0,0.00015609,2]
[330467723,1719459040202,-200.0,0.00015609,2]
[330467724,1719459040214,-2000.0,0.00015609,2]
[330467725,1719459040225,-200.0,0.00015609,2]
[330467726,1719459040235,-2000.0,0.00015609,2]
[330467727,1719459040245,-200.0,0.00015609,2]
[330467728,1719459040256,-10061.66965734,0.00015726,2]
[330467729,1719459040266,-8851.50546539,0.00015726,2]
[330467730,1719459040277,-151.0,0.00015726,2]
[330467731,1719459040287,-199.759853,0.00015726,2]
[330467732,1719459040298,-834.697105,0.00015726,2]
[330467733,1719459040308,-222.8249572,0.00015832,2]
[330467734,1719459040318,-11754.0,0.000159,5]
[330467735,1719459040329,-1674.23999,0.0001602,2]
[330467736,1719459040340,-3768.4,0.00016116,2]
[330467737,1719459040350,-336.072042,0.00016164,2]
[330467738,1719459040360,-558.5558506,0.0001623,2]
[330467739,1719459040371,-155.0,0.00016315,2]
[330467740,1719459040382,-454.94,0.00016326,2]
[330467741,1719459040392,-151.28,0.00016326,2]
[330467742,1719459040403,-191.195518,0.000165,2]
[330467743,1719459040413,-191.195518,0.000165,2]
[330467744,1719459040424,-223.940822,0.000165,2]
[330467745,1719459040434,-151.0,0.000165,2]
[330467746,1719459040445,-223.940822,0.000165,2]
[330467747,1719459040456,-183.72302,0.000165,2]
[330467748,1719459040467,-579.697736,0.000165,2]
[330467749,1719459040478,-579.697736,0.000165,2]
[330467750,1719459040488,-855.218626,0.000165,2]
[330467751,1719459040499,-855.218626,0.000165,2]
[330467752,1719459040510,-151.0,0.00016567,2]
[330467753,1719459040521,-695.940058,0.00016567,2]
[330467754,1719459040532,-151.0,0.00016567,2]
[330467755,1719459040542,-695.940058,0.00016567,2]
[330467756,1719459040553,-783.02462,0.00016567,2]
[330467757,1719459040565,-783.02462,0.00016567,2]
[330467758,1719459040577,-151.0,0.00016567,2]
[330467759,1719459040587,-151.0,0.00016567,2]
[330467760,1719459040598,-10061.66965734,0.00016608,2]
[330467761,1719459040610,-8851.50546539,0.00016608,2]
[330467762,1719459040621,-173.72078,0.00016669,2]
[330467763,1719459040631,-153.27391,0.00016669,2]
[330467764,1719459040642,-505.066,0.00016682,2]
[330467765,1719459040652,-619.709,0.00016682,2]
[330467766,1719459040662,-180.08,0.00016712,2]
[330467767,1719459040672,-400.0,0.00016723,2]
[330467768,1719459040682,-151.0,0.00016765,2]
[330467769,1719459040694,-151.0,0.00016765,2]
[330467770,1719459040704,-151.0,0.00016765,2]
[330467771,1719459040715,-151.0,0.00016765,2]
[330467772,1719459040726,-158.264088,0.00016765,2]
[330467773,1719459040737,-158.264088,0.00016765,2]
[330467774,1719459040747,-169.352271,0.00016765,2]
[330467775,1719459040757,-169.352271,0.00016765,2]
[330467776,1719459040768,-151.0,0.00016765,2]
[330467777,1719459040779,-151.0,0.00016765,2]
[330467778,1719459040789,-151.0,0.00016765,2]
[330467779,1719459040800,-151.0,0.00016765,2]
[330467780,1719459040810,-151.0,0.00016765,2]
[330467781,1719459040820,-179.68738,0.00016765,2]
[330467782,1719459040831,-151.0,0.00016765,2]
[330467783,1719459040841,-151.0,0.00016765,2]
[330467784,1719459040853,-179.68738,0.00016765,2]
[330467785,1719459040863,-151.0,0.00016765,2]
[330467787,1719459040874,-151.0,0.00016765,2]
[330467788,1719459040884,-151.0,0.00016765,2]
[330467790,1719459040895,-151.0,0.00016765,2]
[330467791,1719459040905,-151.0,0.00016765,2]
[330467793,1719459040915,-151.0,0.00016765,2]
[330467795,1719459040925,-1673.559751,0.00016765,2]
[330467796,1719459040937,-1673.559751,0.00016765,2]
[330467797,1719459040949,-1194.662428,0.00016765,2]
[330467798,1719459040961,-1194.662428,0.00016765,2]
[330467799,1719459040972,-151.0,0.00016765,2]
[330467800,1719459040982,-151.0,0.00016765,2]
[330467801,1719459040994,-624.601598,0.00016765,2]
[330467802,1719459041005,-624.601598,0.00016765,2]
[330467803,1719459041015,-296.76283,0.00016765,2]
[330467804,1719459041028,-43.15106346,0.00016765,2]
[330467805,1719459041042,-253.61176654,0.00016765,2]
[330467806,1719459041052,-237.032207,0.00016765,2]
[330467807,1719459041063,-167.72788,0.00016765,2]
[330467808,1719459041073,-579.933629,0.00016765,2]
[330467809,1719459041084,-579.933629,0.00016765,2]
[330467810,1719459041098,-151.0,0.00016765,2]
[330467811,1719459041109,-166.32481,0.00016765,2]
[330467812,1719459041119,-151.0,0.00016765,2]
[330467813,1719459041130,-166.32481,0.00016765,2]
[330467814,1719459041140,-529.429864,0.00016765,2]
[330467815,1719459041152,-529.429864,0.00016765,2]
[330467816,1719459041162,-409.34899384,0.00016765,2]
[330467817,1719459041658,-116.32660516,0.00016765,2]
[330467818,1719459041669,-142.70190576,0.00016765,2]
[330467819,1719459041682,-8.29809424,0.00016765,2]
[330467820,1719459041692,-525.675599,0.00016765,2]
[330467821,1719459041702,-151.0,0.00016765,2]
[330467822,1719459041715,-634.911005,0.00016765,2]
[330467823,1719459041725,-88.37755232,0.00016765,2]
[330467824,1719459041738,-62.62244768,0.00016765,2]
[330467825,1719459041751,-151.0,0.00016765,2]
[330467826,1719459041762,-634.911005,0.00016765,2]
[330467827,1719459041772,-151.0,0.00016765,2]
[330467828,1719459041782,-151.0,0.00016765,2]
[330467829,1719459041792,-214.270165,0.00016765,2]
[330467830,1719459041803,-276.628917,0.00016765,2]
[330467831,1719459041813,-276.628917,0.00016765,2]
[330467832,1719459041823,-173.325237,0.00016765,2]
[330467833,1719459041833,-151.0,0.00016765,2]
[330467834,1719459041843,-173.325237,0.00016765,2]
[330467835,1719459041852,-151.0,0.00016765,2]
[330467836,1719459041862,-151.0,0.00016765,2]
[330467837,1719459041871,-151.0,0.00016765,2]
[330467838,1719459041881,-151.0,0.00016765,2]
[330467839,1719459041891,-151.0,0.00016765,2]
[330467840,1719459041901,-151.0,0.00016765,2]
[330467841,1719459041912,-151.0,0.00016765,2]
[330467842,1719459041922,-151.0,0.00016765,2]
[330467843,1719459041932,-250.292048,0.00016765,2]
[330467844,1719459041947,-250.292048,0.00016765,2]
[330467845,1719459041959,-151.0,0.00016765,2]
[330467846,1719459041971,-151.0,0.00016765,2]
[330467847,1719459041981,-151.0,0.00016765,2]
[330467848,1719459041994,-151.0,0.00016765,2]
[330467849,1719459042004,-6908.182887,0.00016765,2]
[330467850,1719459042015,-6908.182887,0.00016765,2]
[330467851,1719459042029,-151.0,0.00016765,2]
[330467852,1719459042039,-152.23958,0.00016765,2]
[330467853,1719459042050,-255.57918,0.00016765,2]
[330467854,1719459042060,-255.57918,0.00016765,2]
[330467855,1719459042071,-151.0,0.00016765,2]
[330467856,1719459042082,-834.697105,0.00016765,2]
[330467857,1719459042092,-10000.0,0.00016765,2]
[330467858,1719459042103,-1764.3274,0.000168,2]
[330467859,1719459042112,-152.729,0.00016882,2]
[330467860,1719459042122,-436.0,0.000169,2]
[330467861,1719459042132,-1028.0,0.000169,2]
[330467862,1719459042143,-600.0,0.00016908,2]
[330467863,1719459042153,-151.0,0.00016969,2]
[330467864,1719459042168,-151.0,0.00016969,2]
[330467865,1719459042180,-232.0,0.00016969,2]
[330467866,1719459042190,-152.531077,0.00016969,2]
[330467867,1719459042201,-151.0,0.00016969,2]
[330467868,1719459042213,-151.0,0.00016969,2]
[330467869,1719459042224,-151.0,0.00016969,2]
[330467870,1719459042234,-151.0,0.00016969,2]
[330467871,1719459042244,-151.0,0.00016969,2]
[330467872,1719459042254,-221.965169,0.00016969,2]
[330467873,1719459042264,-151.0,0.00016969,2]
[330467874,1719459042275,-291.532333,0.00016969,2]
[330467875,1719459042285,-815.366314,0.00016969,2]
[330467876,1719459042295,-263.504499,0.00016969,2]
[330467877,1719459042305,-151.0,0.00016969,2]
[330467878,1719459042316,-164.549662,0.00016969,2]
[330467879,1719459042326,-164.549662,0.00016969,2]
[330467880,1719459042336,-191.195518,0.00016969,2]
[330467881,1719459042346,-191.195518,0.00016969,2]
[330467882,1719459042356,-151.0,0.00016969,2]
[330467883,1719459042366,-223.940822,0.00016969,2]
[330467884,1719459042377,-151.0,0.00016969,2]
[330467885,1719459042387,-223.940822,0.00016969,2]
[330467886,1719459042398,-158.7522,0.00016969,2]
[330467887,1719459042408,-579.697736,0.00016969,2]
[330467888,1719459042419,-579.697736,0.00016969,2]
[330467889,1719459042429,-695.940058,0.00016969,2]
[330467890,1719459042440,-855.218626,0.00016969,2]
[330467891,1719459042450,-164.772421,0.00016969,2]
[330467892,1719459042460,-695.940058,0.00016969,2]
[330467893,1719459042470,-855.218626,0.00016969,2]
[330467894,1719459042480,-783.02462,0.00016969,2]
[330467895,1719459042490,-783.02462,0.00016969,2]
[330467896,1719459042501,-151.0,0.00016969,2]
[330467897,1719459042512,-226.468891,0.00016969,2]
[330467898,1719459042522,-1422.42,0.00016982,2]
[330467899,1719459042533,-168.577,0.00016982,2]
[330467900,1719459042543,-823.236,0.00016982,2]
[330467901,1719459042555,-189.898,0.00016982,2]
[330467902,1719459042567,-336.072042,0.00016986,2]
[330467903,1719459042578,-527.96,0.00017233,2]
[330467904,1719459042590,-421.48,0.00017233,2]
[330467905,1719459042601,-527.96,0.00017233,2]
[330467906,1719459042611,-164.7,0.00017233,2]
[330467907,1719459042621,-427.67,0.00017233,2]
[330467908,1719459042633,-158.18,0.00017233,2]
[330467909,1719459042643,-698.45,0.00017233,2]
[330467910,1719459042654,-302.14,0.00017233,2]
[330467911,1719459042665,-317.11,0.00017233,2]
[330467912,1719459042676,-150.63,0.00017233,2]
[330467913,1719459042687,-425.36,0.00017233,2]
[330467914,1719459042698,-150.0,0.00017233,2]
[330467915,1719459042711,-1055.48,0.00017233,2]
[330467916,1719459042723,-716.47,0.00017233,2]
[330467917,1719459042734,-423.92,0.00017233,2]
[330467918,1719459042745,-404.76,0.00017233,2]
[330467919,1719459042755,-423.92,0.00017233,2]
[330467920,1719459042766,-150.0,0.00017233,2]
[330467921,1719459042776,-1674.24,0.0001727,2]
[330467922,1719459042788,-527.96,0.00017334,2]
[330467923,1719459042798,-558.5558506,0.00017364,2]
[330467924,1719459042808,-151.0,0.00017413,2]
[330467925,1719459042819,-151.0,0.00017413,2]
[330467926,1719459042829,-151.0,0.00017413,2]
[330467927,1719459042840,-151.0,0.00017413,2]
[330467928,1719459042850,-151.0,0.00017413,2]
[330467929,1719459042860,-158.264088,0.00017413,2]
[330467930,1719459042870,-158.264088,0.00017413,2]
[330467931,1719459042880,-169.352271,0.00017413,2]
[330467932,1719459042891,-169.352271,0.00017413,2]
[330467933,1719459042901,-151.0,0.00017413,2]
[330467934,1719459042911,-151.0,0.00017413,2]
[330467935,1719459042922,-151.0,0.00017413,2]
[330467936,1719459042932,-151.0,0.00017413,2]
[330467937,1719459042942,-157.604784,0.00017413,2]
[330467938,1719459042956,-1673.559751,0.00017413,2]
[330467939,1719459042968,-1673.559751,0.00017413,2]
[330467940,1719459042979,-1194.662428,0.00017413,2]
[330467941,1719459042989,-1194.662428,0.00017413,2]
[330467942,1719459043004,-151.0,0.00017413,2]
[330467943,1719459043014,-151.0,0.00017413,2]
[330467944,1719459043025,-624.601598,0.00017413,2]
[330467945,1719459043038,-624.601598,0.00017413,2]
[330467946,1719459043049,-296.76283,0.00017413,2]
[330467947,1719459043059,-296.76283,0.00017413,2]
[330467948,1719459043069,-579.933629,0.00017413,2]
[330467949,1719459043081,-579.933629,0.00017413,2]
[330467950,1719459043092,-299.641054,0.00017444,2]
[330467951,1719459043102,-151.0,0.00017444,2]
[330467952,1719459043112,-151.0,0.00017444,2]
[330467953,1719459043123,-151.0,0.00017444,2]
[330467954,1719459043134,-179.68738,0.00017444,2]
[330467955,1719459043144,-151.0,0.00017444,2]
[330467956,1719459043154,-179.68738,0.00017444,2]
[330467957,1719459043165,-151.0,0.00017444,2]
[330467958,1719459043175,-151.0,0.00017444,2]
[330467959,1719459043185,-151.0,0.00017444,2]
[330467960,1719459043196,-152.054926,0.00017444,2]
[330467961,1719459043206,-166.32481,0.00017444,2]
[330467962,1719459043218,-151.0,0.00017444,2]
[330467963,1719459043228,-166.32481,0.00017444,2]
[330467964,1719459043238,-529.429864,0.00017444,2]
[330467965,1719459043248,-529.429864,0.00017444,2]
[330467966,1719459043259,-525.675599,0.00017444,2]
[330467967,1719459043269,-151.0,0.00017444,2]
[330467968,1719459043279,-525.675599,0.00017444,2]
[330467969,1719459043289,-151.0,0.00017444,2]
[330467970,1719459043300,-634.911005,0.00017444,2]
[330467971,1719459043310,-151.0,0.00017444,2]
[330467972,1719459043320,-151.0,0.00017444,2]
[330467973,1719459043331,-634.911005,0.00017444,2]
[330467974,1719459043340,-151.0,0.00017444,2]
[330467975,1719459043351,-151.0,0.00017444,2]
[330467976,1719459043360,-276.628917,0.00017444,2]
[330467977,1719459043370,-276.628917,0.00017444,2]
[330467978,1719459043380,-173.325237,0.00017444,2]
[330467979,1719459043391,-151.0,0.00017444,2]
[330467980,1719459043401,-173.325237,0.00017444,2]
[330467981,1719459043412,-151.0,0.00017444,2]
[330467982,1719459043422,-151.0,0.00017444,2]